fUSD/lending_fUSD_20260628
["ID","MTS","AMOUNT","RATE_DAILY","PERIOD"]
[426560457,1782592252000,-337.737412,0.00037,7]
[426560458,1782592252000,-334.737412,0.00037,7]
[426560455,1782592252000,-334.737412,0.00037,7]
[426560461,1782592252000,-331.737412,0.00037,14]
[426560462,1782592252000,-337.737412,0.00037,14]
[426560463,1782592252000,-334.737412,0.00037,14]
[426560453,1782592252000,-331.737412,0.00037,7]
[426560444,1782592252000,-331.737412,0.00037,7]
[426560456,1782592252000,-331.737412,0.00037,7]
[426560431,1782592252000,-370250.46621487,0.00037,30]
[426560434,1782592252000,-54865.67211411,0.00037,30]
[426560408,1782592252000,-857.91,0.00036981,14]
[426560404,1782592252000,-505.0,0.00036963,5]
[426560407,1782592252000,-10233.0,0.0003698,120]
[426560409,1782592252000,-500.0,0.00036986,14]
[426560419,1782592252000,-212.0,0.00037,120]
[426560416,1782592252000,-10019.58055969,0.00037,30]
[426560414,1782592252000,-257.50432897,0.00037,30]
[426560420,1782592252000,-58971.6607635,0.00037,120]
[426560410,1782592252000,-5000.0,0.00036986,120]
[426560421,1782592252000,-20000.0,0.00037,60]
[426560413,1782592252000,-251.18200478,0.00037,120]
[426560411,1782592252000,-191128.77918423,0.0003699,30]
[426560403,1782592252000,-2889.40739217,0.0003692,10]
[426560418,1782592252000,-632.40991116,0.00037,120]
[426560417,1782592252000,-251.23755636,0.00037,120]
[426560430,1782592252000,-23771.74615512,0.00037,30]
[426560428,1782592252000,-9999.999999,0.00037,30]
[426560426,1782592252000,-152.0,0.00037,120]
[426560422,1782592252000,-615.36042246,0.00037,120]
[426560427,1782592252000,-79000.0,0.00037,30]
[426560433,1782592252000,-2321.77266335,0.00037,30]
[426560424,1782592252000,-1000.0,0.00037,120]
[426560423,1782592252000,-156.37,0.00037,120]
[426560415,1782592252000,-38004.02229006,0.00037,30]
[426560432,1782592252000,-395842.04726304,0.00037,7]
[426560425,1782592252000,-326.21531115,0.00037,120]
[426560429,1782592252000,-224.14,0.00037,120]
[426560501,1782592253000,-1092.0,0.00037037,120]
[426560486,1782592253000,-1448.0849591,0.00037,120]
[426560487,1782592253000,-150.0,0.00037,120]
[426560495,1782592253000,-3513.1536109,0.00037,120]
[426560493,1782592253000,-95533.5488211,0.00037,120]
[426560502,1782592253000,-150.0,0.00037039,120]
[426560497,1782592253000,-2110.0,0.00037012,2]
[426560499,1782592253000,-5000.0,0.00037035,7]
[426560503,1782592253000,-645.64,0.00037044,14]
[426560505,1782592253000,-5000.0,0.00037075,2]
[426560512,1782592253000,-611.62707539,0.000371,120]
[426560496,1782592253000,-8439.0,0.00037,117]
[426560504,1782592253000,-702.12,0.00037066,2]
[426560498,1782592253000,-5000.0,0.00037035,2]
[426560500,1782592253000,-1134.78,0.00037037,120]
[426560490,1782592253000,-229.31990961,0.00037,120]
[426560514,1782592253000,-2051.695,0.000371,30]
[426560509,1782592253000,-153.61,0.00037082,60]
[426560511,1782592253000,-30730.15903738,0.000371,119]
[426560510,1782592253000,-155.8,0.00037092,60]
[426560513,1782592253000,-157.69845179,0.000371,60]
[426560507,1782592253000,-1062.79,0.00037075,120]
[426560506,1782592253000,-4217.47,0.00037075,30]
[426560488,1782592253000,-800.0,0.00037,45]
[426560480,1782592253000,-337.737412,0.00037,14]
[426560494,1782592253000,-167.09771,0.00037,120]
[426560508,1782592253000,-1043.21132818,0.0003708,60]
[426560471,1782592253000,-337.737412,0.00037,14]
[426560465,1782592253000,-337.737412,0.00037,14]
[426560464,1782592253000,-331.737412,0.00037,14]
[426560466,1782592253000,-334.737412,0.00037,14]
[426560468,1782592253000,-337.737412,0.00037,14]
[426560470,1782592253000,-331.737412,0.00037,14]
[426560469,1782592253000,-334.737412,0.00037,14]
[426560467,1782592253000,-331.737412,0.00037,14]
[426560475,1782592253000,-334.737412,0.00037,14]
[426560483,1782592253000,-1807.0,0.00037,120]
[426560473,1782592253000,-331.737412,0.00037,14]
[426560474,1782592253000,-337.737412,0.00037,14]
[426560472,1782592253000,-334.737412,0.00037,14]
[426560476,1782592253000,-331.737412,0.00037,14]
[426560477,1782592253000,-337.737412,0.00037,14]
[426560478,1782592253000,-334.737412,0.00037,14]
[426560481,1782592253000,-334.737412,0.00037,14]
[426560482,1782592253000,-6182.0,0.00037,120]
[426560479,1782592253000,-331.737412,0.00037,14]
[426560492,1782592253000,-502441.41731037,0.00037,120]
[426560491,1782592253000,-1000.0,0.00037,30]
[426560485,1782592253000,-20000.0,0.00037,120]
[426560489,1782592253000,-632441.44956758,0.00037,2]
[426560484,1782592253000,-1964.0,0.00037,120]
[426560515,1782592253000,-2051.695,0.000371,30]
[426560517,1782592253000,-3916.751,0.000371,120]
[426560545,1782592253000,-254.42,0.00037204,120]
[426560550,1782592253000,-150.0,0.00037215,2]
[426560554,1782592253000,-204.66,0.00037216,60]
[426560552,1782592253000,-625.0,0.00037215,120]
[426560547,1782592253000,-13698.78,0.0003721,2]
[426560551,1782592253000,-194.463,0.00037215,2]
[426560546,1782592253000,-15123.0,0.00037209,15]
[426560548,1782592253000,-177.26,0.0003721,60]
[426560553,1782592253000,-6561251.32149554,0.00037215,120]
[426560549,1782592253000,-150.0,0.00037215,2]
[426560556,1782592253000,-151.0181359,0.00037219,120]
[426560558,1782592253000,-2603.18,0.00037221,120]
[426560557,1782592253000,-155.360969,0.0003722,117]
[426560559,1782592253000,-1419.91,0.00037221,30]
[426560560,1782592253000,-473.3,0.00037221,7]
[426560565,1782592253000,-76090.34053541,0.0003723,120]
[426560562,1782592253000,-8330459.60926007,0.00037221,120]
[426560564,1782592253000,-31856.48760336,0.0003723,3]
[426560563,1782592253000,-182.94,0.0003723,60]
[426560561,1782592253000,-236.65,0.00037221,2]
[426560566,1782592253000,-448.15,0.00037232,10]
[426560567,1782592253000,-2000.0,0.00037233,120]
[426560516,1782592253000,-2051.69,0.000371,30]
[426560543,1782592253000,-524.4381418,0.000372,120]
[426560544,1782592253000,-2112.69873545,0.00037202,120]
[426560555,1782592253000,-196.62,0.00037218,60]
[426560541,1782592253000,-1062.58852418,0.000372,7]
[426560519,1782592253000,-3916.75,0.000371,120]
[426560542,1782592253000,-524.4381418,0.000372,120]
[426560518,1782592253000,-3916.751,0.000371,120]
[426560520,1782592253000,-194.36,0.000371,7]
[426560521,1782592253000,-5069.11789349,0.000371,120]
[426560522,1782592253000,-924.4099659,0.00037119,30]
[426560524,1782592253000,-16028.99262287,0.0003713,14]
[426560526,1782592253000,-156.55340098,0.00037137,120]
[426560525,1782592253000,-153.61,0.00037132,60]
[426560527,1782592253000,-300.0,0.0003715,100]
[426560523,1782592253000,-410263.61327891,0.0003713,14]
[426560529,1782592253000,-10000.0,0.00037163,15]
[426560528,1782592253000,-10000.0,0.00037163,30]
[426560530,1782592253000,-401.25918454,0.0003717,2]
[426560532,1782592253000,-17927.15156028,0.000372,80]
[426560533,1782592253000,-500.0,0.000372,120]
[426560531,1782592253000,-182.93,0.0003718,60]
[426560536,1782592253000,-398.50529396,0.000372,120]
[426560534,1782592253000,-98425.54965278,0.000372,120]
[426560535,1782592253000,-2048.76613127,0.000372,3]
[426560540,1782592253000,-524.4381418,0.000372,120]
[426560538,1782592253000,-524.43814182,0.000372,120]
[426560537,1782592253000,-1037.2,0.000372,120]
[426560539,1782592253000,-524.4381418,0.000372,120]
[426560608,1782592254000,-177.39325063,0.00037253,2]
[426560604,1782592254000,-975.33262838,0.00037252,120]
[426560602,1782592254000,-975.33262838,0.00037252,120]
[426560605,1782592254000,-975.33262847,0.00037252,120]
[426560601,1782592254000,-975.33262838,0.00037252,120]
[426560607,1782592254000,-335.07,0.00037252,120]
[426560612,1782592254000,-2301.67591163,0.0003726,30]
[426560603,1782592254000,-975.33262838,0.00037252,120]
[426560590,1782592254000,-975.33262838,0.00037252,120]
[426560597,1782592254000,-975.33262838,0.00037252,120]
[426560610,1782592254000,-10000.0,0.00037256,120]
[426560606,1782592254000,-223.38,0.00037252,30]
[426560611,1782592254000,-391.65996042,0.00037258,30]
[426560621,1782592254000,-4102.08145557,0.00037272,14]
[426560617,1782592254000,-196.62,0.00037268,60]
[426560614,1782592254000,-5000.0,0.00037262,2]
[426560616,1782592254000,-1729.0,0.00037266,30]
[426560613,1782592254000,-2000.0,0.0003726,120]
[426560624,1782592254000,-200.0,0.00037272,2]
[426560619,1782592254000,-159.0,0.00037271,120]
[426560620,1782592254000,-154.0,0.00037271,120]
[426560623,1782592254000,-200.0,0.00037272,2]
[426560615,1782592254000,-204.66,0.00037266,60]
[426560618,1782592254000,-158.86018745,0.00037271,2]
[426560622,1782592254000,-250.0,0.00037272,7]
[426560591,1782592254000,-975.33262838,0.00037252,120]
[426560609,1782592254000,-3270.0,0.00037254,120]
[426560596,1782592254000,-975.33262838,0.00037252,120]
[426560572,1782592254000,-822.0,0.00037239,120]
[426560592,1782592254000,-975.33262838,0.00037252,120]
[426560570,1782592254000,-10000.0,0.00037236,120]
[426560574,1782592254000,-1037.2,0.0003724,120]
[426560571,1782592254000,-247.0,0.00037238,120]
[426560576,1782592254000,-345.00264555,0.00037244,14]
[426560569,1782592254000,-1080.86,0.00037233,120]
[426560575,1782592254000,-1418.16,0.00037243,120]
[426560568,1782592254000,-1000.0,0.00037233,120]
[426560573,1782592254000,-1000.0,0.0003724,120]
[426560577,1782592254000,-424.35325402,0.00037245,14]
[426560578,1782592254000,-8000.0,0.00037248,31]
[426560580,1782592254000,-5000.0,0.0003725,120]
[426560583,1782592254000,-975.33262838,0.00037252,120]
[426560588,1782592254000,-975.33262838,0.00037252,120]
[426560579,1782592254000,-1600.0,0.0003725,120]
[426560581,1782592254000,-975.33262838,0.00037252,120]
[426560625,1782592254000,-174.63629857,0.00037272,14]
[426560582,1782592254000,-975.33262838,0.00037252,120]
[426560586,1782592254000,-975.33262838,0.00037252,120]
[426560585,1782592254000,-975.33262838,0.00037252,120]
[426560584,1782592254000,-975.33262838,0.00037252,120]
[426560587,1782592254000,-975.33262838,0.00037252,120]
[426560593,1782592254000,-975.33262838,0.00037252,120]
[426560600,1782592254000,-975.33262838,0.00037252,120]
[426560598,1782592254000,-975.33262838,0.00037252,120]
[426560594,1782592254000,-975.33262838,0.00037252,120]
[426560589,1782592254000,-975.33262838,0.00037252,120]
[426560595,1782592254000,-975.33262838,0.00037252,120]
[426560599,1782592254000,-975.33262838,0.00037252,120]
[426560626,1782592254000,-500.0,0.00037272,3]
[426560666,1782592254000,-208008.3646916,0.00037273,2]
[426560628,1782592254000,-50000.0,0.00037272,61]
[426560655,1782592254000,-500.0,0.00037273,120]
[426560664,1782592254000,-402.14591331,0.00037273,2]
[426560661,1782592254000,-10789.51183571,0.00037273,11]
[426560668,1782592254000,-125657.87839877,0.00037273,2]
[426560665,1782592254000,-587.50611099,0.00037273,5]
[426560672,1782592254000,-2070.32985806,0.00037273,5]
[426560663,1782592254000,-1095.57655716,0.00037273,2]
[426560662,1782592254000,-2442.09837645,0.00037273,10]
[426560670,1782592254000,-1210.0,0.00037273,2]
[426560669,1782592254000,-11022.68752812,0.00037273,3]
[426560671,1782592254000,-722.57812798,0.00037273,2]
[426560667,1782592254000,-172699.60261705,0.00037273,2]
[426560658,1782592254000,-702.13,0.00037273,30]
[426560674,1782592254000,-2880.81897951,0.00037273,2]
[426560676,1782592254000,-653.4871181,0.00037273,6]
[426560684,1782592254000,-2526.49890395,0.00037273,2]
[426560685,1782592254000,-3963.11951125,0.00037273,12]
[426560675,1782592254000,-345.17867183,0.00037273,2]
[426560677,1782592254000,-993.6996561,0.00037273,2]
[426560678,1782592254000,-1562.67741708,0.00037273,2]
[426560681,1782592254000,-504.54617697,0.00037273,2]
[426560682,1782592254000,-1530.15633581,0.00037273,2]
[426560683,1782592254000,-560.55259014,0.00037273,7]
[426560680,1782592254000,-5337.52305016,0.00037273,2]
[426560679,1782592254000,-1058.30509928,0.00037273,2]
[426560627,1782592254000,-500.1,0.00037272,3]
[426560673,1782592254000,-358.01111914,0.00037273,2]
[426560659,1782592254000,-200.0,0.00037273,2]
[426560686,1782592254000,-2780.12019226,0.00037273,2]
[426560657,1782592254000,-500.0,0.00037273,3]
[426560630,1782592254000,-50000.0,0.00037272,63]
[426560629,1782592254000,-50000.0,0.00037272,62]
[426560631,1782592254000,-50000.0,0.00037272,64]
[426560633,1782592254000,-50000.0,0.00037272,66]
[426560635,1782592254000,-1000.0,0.00037272,120]
[426560632,1782592254000,-50000.0,0.00037272,65]
[426560634,1782592254000,-50000.0,0.00037272,67]
[426560654,1782592254000,-162.0,0.00037273,120]
[426560645,1782592254000,-50000.0,0.00037272,71]
[426560648,1782592254000,-50000.0,0.00037272,74]
[426560640,1782592254000,-189.79329551,0.00037272,120]
[426560639,1782592254000,-339.82849929,0.00037272,120]
[426560647,1782592254000,-50000.0,0.00037272,73]
[426560636,1782592254000,-1373.03207403,0.00037272,120]
[426560637,1782592254000,-500.0,0.00037272,120]
[426560656,1782592254000,-180.0,0.00037273,120]
[426560642,1782592254000,-50000.0,0.00037272,68]
[426560651,1782592254000,-240.22021222,0.00037272,120]
[426560649,1782592254000,-50000.0,0.00037272,75]
[426560652,1782592254000,-251.67912923,0.00037272,120]
[426560650,1782592254000,-500.0,0.00037272,120]
[426560653,1782592254000,-500.0,0.00037273,120]
[426560643,1782592254000,-50000.0,0.00037272,69]
[426560646,1782592254000,-50000.0,0.00037272,72]
[426560644,1782592254000,-50000.0,0.00037272,70]
[426560638,1782592254000,-517.72419323,0.00037272,120]
[426560641,1782592254000,-185.03658285,0.00037272,120]
[426560660,1782592254000,-418.05,0.00037273,120]
[426560724,1782592255000,-1690.91082755,0.00037273,18]
[426560730,1782592255000,-502.62364569,0.00037273,3]
[426560728,1782592255000,-234.73023812,0.00037273,2]
[426560729,1782592255000,-178.14102909,0.00037273,2]
[426560722,1782592255000,-550.0,0.00037273,2]
[426560712,1782592255000,-643.0,0.00037273,2]
[426560723,1782592255000,-1094.51227664,0.00037273,7]
[426560716,1782592255000,-20005.3697279,0.00037273,5]
[426560715,1782592255000,-500.0,0.00037273,10]
[426560713,1782592255000,-2042.21453487,0.00037273,4]
[426560725,1782592255000,-11018.73993911,0.00037273,2]
[426560726,1782592255000,-175071.81142278,0.00037273,2]
[426560744,1782592255000,-500.0,0.00037273,7]
[426560732,1782592255000,-384.82206843,0.00037273,2]
[426560731,1782592255000,-6000.0,0.00037273,2]
[426560733,1782592255000,-1310.98762583,0.00037273,2]
[426560737,1782592255000,-376.16939242,0.00037273,14]
[426560735,1782592255000,-490.51442696,0.00037273,7]
[426560741,1782592255000,-220.27085326,0.00037273,2]
[426560736,1782592255000,-778.62316309,0.00037273,2]
[426560734,1782592255000,-1059.40529326,0.00037273,2]
[426560740,1782592255000,-227.92469881,0.00037273,5]
[426560743,1782592255000,-8300.0,0.00037273,7]
[426560742,1782592255000,-1094.17620228,0.00037273,2]
[426560717,1782592255000,-589.28184485,0.00037273,2]
[426560727,1782592255000,-15371.35655103,0.00037273,2]
[426560714,1782592255000,-998.08749457,0.00037273,2]
[426560699,1782592255000,-1071.26348601,0.00037273,2]
[426560711,1782592255000,-15447.35094076,0.00037273,3]
[426560738,1782592255000,-8014.27367767,0.00037273,2]
[426560694,1782592255000,-500.0,0.00037273,2]
[426560690,1782592255000,-1723.53404853,0.00037273,2]
[426560687,1782592255000,-222771.46321418,0.00037273,2]
[426560691,1782592255000,-1018.62481824,0.00037273,5]
[426560689,1782592255000,-1129.04998933,0.00037273,7]
[426560688,1782592255000,-155.4672711,0.00037273,2]
[426560692,1782592255000,-255.98973891,0.00037273,2]
[426560693,1782592255000,-15934.76396446,0.00037273,3]
[426560696,1782592255000,-250.99776919,0.00037273,2]
[426560698,1782592255000,-59081.35331139,0.00037273,2]
[426560708,1782592255000,-23591.45225486,0.00037273,2]
[426560718,1782592255000,-819627.54477516,0.00037273,2]
[426560697,1782592255000,-1341.15798785,0.00037273,15]
[426560701,1782592255000,-560.81098456,0.00037273,2]
[426560703,1782592255000,-9521.2511743,0.00037273,2]
[426560704,1782592255000,-1348.95486172,0.00037273,2]
[426560702,1782592255000,-500.0,0.00037273,5]
[426560705,1782592255000,-1221.0,0.00037273,4]
[426560706,1782592255000,-3525.63678883,0.00037273,2]
[426560707,1782592255000,-2260.58383556,0.00037273,2]
[426560710,1782592255000,-189.27349978,0.00037273,2]
[426560720,1782592255000,-180.21127127,0.00037273,2]
[426560721,1782592255000,-15221.8181217,0.00037273,2]
[426560709,1782592255000,-13226.30379539,0.00037273,2]
[426560719,1782592255000,-3332.98689315,0.00037273,2]
[426560700,1782592255000,-600.0,0.00037273,5]
[426560739,1782592255000,-642.5224079,0.00037273,2]
[426560695,1782592255000,-1296.01881653,0.00037273,2]
[426560748,1782592255000,-1100.0,0.00037273,2]
[426560772,1782592255000,-20884.48497703,0.00037273,2]
[426560775,1782592255000,-864.37398277,0.00037273,2]
[426560771,1782592255000,-413.24482209,0.00037273,2]
[426560792,1782592255000,-749.37192996,0.00037273,10]
[426560781,1782592255000,-172.46731048,0.00037273,2]
[426560782,1782592255000,-2232.48214906,0.00037273,2]
[426560785,1782592255000,-150.0,0.00037273,2]
[426560784,1782592255000,-472.87671342,0.00037273,2]
[426560783,1782592255000,-899.50408595,0.00037273,2]
[426560788,1782592255000,-200.08397907,0.00037273,10]
[426560789,1782592255000,-18000.0,0.00037273,2]
[426560791,1782592255000,-1667.93001465,0.00037273,10]
[426560780,1782592255000,-5855.26242133,0.00037273,2]
[426560786,1782592255000,-500.0,0.00037273,2]
[426560790,1782592255000,-1131.32160003,0.00037273,7]
[426560794,1782592255000,-82704.70131942,0.00037273,10]
[426560793,1782592255000,-1000.0,0.00037273,10]
[426560795,1782592255000,-5290.03529553,0.00037273,10]
[426560801,1782592255000,-508.71733896,0.00037273,5]
[426560803,1782592255000,-201.84977178,0.00037273,2]
[426560797,1782592255000,-519.66842539,0.00037273,2]
[426560802,1782592255000,-700.0,0.00037273,2]
[426560746,1782592255000,-2500.0,0.00037273,2]
[426560796,1782592255000,-610.0,0.00037273,2]
[426560799,1782592255000,-762.45489585,0.00037273,2]
[426560798,1782592255000,-204.79293066,0.00037273,2]
[426560787,1782592255000,-150.0,0.00037273,14]
[426560773,1782592255000,-13357.60059448,0.00037273,7]
[426560800,1782592255000,-1977.93256425,0.00037273,5]
[426560776,1782592255000,-208.25703368,0.00037273,2]
[426560779,1782592255000,-290.33811211,0.00037273,2]
[426560745,1782592255000,-459.12111884,0.00037273,2]
[426560747,1782592255000,-350.9080121,0.00037273,2]
[426560749,1782592255000,-3933.1250338,0.00037273,2]
[426560753,1782592255000,-631.87235393,0.00037273,2]
[426560752,1782592255000,-493.99681128,0.00037273,2]
[426560751,1782592255000,-232.54771643,0.00037273,2]
[426560754,1782592255000,-1628.24759892,0.00037273,2]
[426560756,1782592255000,-562.45090469,0.00037273,2]
[426560766,1782592255000,-229.7520789,0.00037273,7]
[426560755,1782592255000,-1127.59366169,0.00037273,5]
[426560757,1782592255000,-3366.06358547,0.00037273,7]
[426560758,1782592255000,-44413.77176056,0.00037273,15]
[426560750,1782592255000,-935.65565446,0.00037273,2]
[426560761,1782592255000,-2262.29411562,0.00037273,2]
[426560759,1782592255000,-1037.87375569,0.00037273,2]
[426560778,1782592255000,-590.06804675,0.00037273,5]
[426560774,1782592255000,-2505.53076952,0.00037273,2]
[426560769,1782592255000,-5409.43661682,0.00037273,4]
[426560767,1782592255000,-1147.16857697,0.00037273,2]
[426560768,1782592255000,-30962.93975057,0.00037273,15]
[426560765,1782592255000,-7069.77133841,0.00037273,4]
[426560760,1782592255000,-374.22437622,0.00037273,2]
[426560770,1782592255000,-280.49805206,0.00037273,2]
[426560777,1782592255000,-886.35871718,0.00037273,2]
[426560763,1782592255000,-12594.29460422,0.00037273,2]
[426560764,1782592255000,-1884.25655133,0.00037273,2]
[426560762,1782592255000,-15237.88845173,0.00037273,2]
[426560833,1782592256000,-999.0600174,0.00037273,2]
[426560840,1782592256000,-50000.0,0.00037273,17]
[426560832,1782592256000,-501.85355336,0.00037273,5]
[426560835,1782592256000,-33475.05312808,0.00037273,7]
[426560834,1782592256000,-5000.0,0.00037273,14]
[426560836,1782592256000,-172.59,0.00037273,3]
[426560837,1782592256000,-172.59,0.00037273,3]
[426560839,1782592256000,-50000.0,0.00037273,13]
[426560841,1782592256000,-198.0,0.00037273,2]
[426560844,1782592256000,-582.81,0.00037273,2]
[426560838,1782592256000,-176.17654882,0.00037273,2]
[426560848,1782592256000,-582.81,0.00037273,2]
[426560842,1782592256000,-5052.0,0.00037273,2]
[426560850,1782592256000,-500.0,0.00037273,7]
[426560845,1782592256000,-582.81,0.00037273,2]
[426560843,1782592256000,-582.81,0.00037273,2]
[426560849,1782592256000,-100000.50932193,0.00037273,2]
[426560846,1782592256000,-582.81,0.00037273,2]
[426560852,1782592256000,-500.0,0.00037273,7]
[426560862,1782592256000,-500.0,0.00037273,16]
[426560856,1782592256000,-500.0,0.00037273,7]
[426560828,1782592256000,-201.56,0.00037273,2]
[426560847,1782592256000,-582.81,0.00037273,2]
[426560830,1782592256000,-187.87161151,0.00037273,7]
[426560811,1782592256000,-180.0,0.00037273,2]
[426560829,1782592256000,-201.56,0.00037273,2]
[426560804,1782592256000,-1533.43846688,0.00037273,2]
[426560805,1782592256000,-379.0,0.00037273,2]
[426560806,1782592256000,-20000.0,0.00037273,2]
[426560807,1782592256000,-469.0960128,0.00037273,2]
[426560808,1782592256000,-160.99854174,0.00037273,2]
[426560809,1782592256000,-10000.0,0.00037273,3]
[426560812,1782592256000,-319.00836631,0.00037273,2]
[426560810,1782592256000,-1147.732318,0.00037273,2]
[426560813,1782592256000,-2278.29770387,0.00037273,2]
[426560815,1782592256000,-500302.16582669,0.00037273,2]
[426560814,1782592256000,-225.54219633,0.00037273,7]
[426560816,1782592256000,-107825.77093608,0.00037273,2]
[426560817,1782592256000,-1034.40254247,0.00037273,15]
[426560827,1782592256000,-150.0,0.00037273,7]
[426560818,1782592256000,-300.0,0.00037273,15]
[426560819,1782592256000,-2920.0,0.00037273,15]
[426560820,1782592256000,-15489.49872042,0.00037273,14]
[426560822,1782592256000,-1272.3616822,0.00037273,7]
[426560823,1782592256000,-228.0,0.00037273,7]
[426560826,1782592256000,-832.37231049,0.00037273,2]
[426560824,1782592256000,-5000.0,0.00037273,15]
[426560821,1782592256000,-619.85190675,0.00037273,2]
[426560825,1782592256000,-5000.0,0.00037273,2]
[426560831,1782592256000,-363.80897653,0.00037273,2]
[426560859,1782592256000,-560.75037055,0.00037273,7]
[426560854,1782592256000,-500.0,0.00037273,7]
[426560858,1782592256000,-500.0,0.00037273,7]
[426560885,1782592256000,-500.0,0.00037273,14]
[426560886,1782592256000,-500.0,0.00037273,14]
[426560887,1782592256000,-500.0,0.00037273,14]
[426560892,1782592256000,-500.0,0.00037273,14]
[426560891,1782592256000,-500.0,0.00037273,14]
[426560890,1782592256000,-500.0,0.00037273,14]
[426560896,1782592256000,-352.82920083,0.00037273,14]
[426560889,1782592256000,-500.0,0.00037273,14]
[426560893,1782592256000,-500.0,0.00037273,14]
[426560895,1782592256000,-500.0,0.00037273,14]
[426560883,1782592256000,-500.0,0.00037273,14]
[426560894,1782592256000,-500.0,0.00037273,14]
[426560898,1782592256000,-500.0,0.00037273,14]
[426560899,1782592256000,-500.0,0.00037273,14]
[426560900,1782592256000,-504.26878117,0.00037273,14]
[426560902,1782592256000,-500.0,0.00037273,14]
[426560905,1782592256000,-500.0,0.00037273,14]
[426560904,1782592256000,-500.0,0.00037273,14]
[426560903,1782592256000,-500.0,0.00037273,14]
[426560901,1782592256000,-500.0,0.00037273,14]
[426560906,1782592256000,-500.0,0.00037273,14]
[426560851,1782592256000,-500.0,0.00037273,7]
[426560897,1782592256000,-500.0,0.00037273,14]
[426560884,1782592256000,-500.0,0.00037273,14]
[426560888,1782592256000,-500.0,0.00037273,14]
[426560882,1782592256000,-500.0,0.00037273,14]
[426560855,1782592256000,-500.0,0.00037273,7]
[426560881,1782592256000,-613.94525359,0.00037273,3]
[426560863,1782592256000,-500.0,0.00037273,16]
[426560853,1782592256000,-500.0,0.00037273,7]
[426560857,1782592256000,-500.0,0.00037273,7]
[426560860,1782592256000,-500.0,0.00037273,16]
[426560861,1782592256000,-500.0,0.00037273,16]
[426560869,1782592256000,-500.0,0.00037273,16]
[426560872,1782592256000,-500.0,0.00037273,16]
[426560865,1782592256000,-500.0,0.00037273,16]
[426560867,1782592256000,-500.0,0.00037273,16]
[426560864,1782592256000,-500.0,0.00037273,16]
[426560868,1782592256000,-500.0,0.00037273,16]
[426560873,1782592256000,-500.0,0.00037273,16]
[426560877,1782592256000,-500.0,0.00037273,3]
[426560880,1782592256000,-500.0,0.00037273,3]
[426560878,1782592256000,-500.0,0.00037273,3]
[426560875,1782592256000,-500.0,0.00037273,16]
[426560874,1782592256000,-500.0,0.00037273,16]
[426560879,1782592256000,-500.0,0.00037273,3]
[426560871,1782592256000,-500.0,0.00037273,16]
[426560870,1782592256000,-500.0,0.00037273,16]
[426560866,1782592256000,-500.0,0.00037273,16]
[426560876,1782592256000,-365.28309103,0.00037273,16]
[426560947,1782592257000,-500.0,0.00037273,2]
[426560942,1782592257000,-500.0,0.00037273,12]
[426560943,1782592257000,-536.05935845,0.00037273,12]
[426560932,1782592257000,-500.0,0.00037273,12]
[426560939,1782592257000,-500.0,0.00037273,12]
[426560936,1782592257000,-500.0,0.00037273,12]
[426560937,1782592257000,-500.0,0.00037273,12]
[426560940,1782592257000,-500.0,0.00037273,12]
[426560944,1782592257000,-500.0,0.00037273,2]
[426560945,1782592257000,-500.0,0.00037273,2]
[426560946,1782592257000,-500.0,0.00037273,2]
[426560948,1782592257000,-500.0,0.00037273,2]
[426560961,1782592257000,-500.0,0.00037273,5]
[426560953,1782592257000,-545.30640757,0.00037273,2]
[426560952,1782592257000,-500.0,0.00037273,2]
[426560951,1782592257000,-500.0,0.00037273,2]
[426560950,1782592257000,-500.0,0.00037273,2]
[426560954,1782592257000,-500.0,0.00037273,5]
[426560964,1782592257000,-500.0,0.00037273,5]